bitfinex/quotes_ETHUSD_20250114
["timestamp","ask_amount","ask_price","bid_price","bid_amount"]
[1736895758296,3.08937,3237.0,3236.3,4.01131891]
[1736895758482,0.03862122,3236.9,3236.3,4.01131891]
[1736895758684,0.03862122,3236.9,3236.3,0.813]
[1736895759211,3.08937,3237.0,3236.3,0.813]
[1736895759520,0.03862014,3236.9,3236.3,0.813]
[1736895759730,0.9442,3237.5,3236.3,0.813]
[1736895760030,3.0,3237.7,3236.3,0.813]
[1736895760173,3.0,3237.7,3236.2,5.99273342]
[1736895760174,3.60887834,3237.7,3236.5,0.813]
[1736895760376,3.60887834,3237.7,3236.6,3.08957]
[1736895762020,6.69749834,3237.7,3236.6,3.08957]
[1736895762225,3.08892,3237.4,3236.5,0.813]
[1736895762381,3.60887834,3237.7,3236.5,0.813]
[1736895762581,0.66976618,3237.6,3236.6,3.08963]
[1736895762885,3.0,3237.5,3236.6,3.08963]
[1736895763499,3.08882,3237.5,3236.5,0.813]
[1736895763896,3.08882,3237.5,3236.6,3.08966]
[1736895764191,0.66976618,3237.6,3236.7,3.08956]
[1736895764739,2.90278342,3238.3,3237.2,0.813]
[1736895764892,3.39170014,3238.6,3237.6,3.08868]
[1736895765122,0.30386014,3238.6,3237.7,0.813]
[1736895765332,3.0,3238.7,3237.7,3.90157]
[1736895765635,6.08786,3238.5,3237.7,0.813]
[1736895765799,0.03860194,3238.4,3237.7,0.813]
[1736895765998,3.08824,3238.1,3237.7,0.813]
[1736895766221,3.0,3237.8,3236.9,0.813]
[1736895766401,3.08872,3237.6,3236.9,0.813]
[1736895766619,3.08892,3237.4,3236.9,0.813]
[1736895767934,3.0,3237.5,3236.9,0.813]
[1736895768233,3.08854,3237.8,3236.9,0.813]
[1736895771228,3.08882,3237.5,3236.9,0.813]
[1736895771453,3.397702,3237.5,3236.9,0.813]
[1736895771934,0.308882,3237.5,3236.9,0.813]
[1736895772234,3.0,3237.5,3236.9,0.813]
[1736895773210,3.0,3237.9,3237.0,3.08927]
[1736895773814,3.08843,3237.9,3237.0,3.08927]
[1736895774253,3.08843,3237.9,3236.9,0.813]
[1736895774415,0.384663,3237.9,3236.9,0.813]
[1736895774616,3.0,3237.7,3236.9,0.813]
[1736895775752,3.08852,3237.8,3236.9,0.813]
[1736895775753,0.03861268,3237.8,3236.9,0.813]
[1736895775953,3.08886,3237.5,3236.9,0.813]
[1736895777609,3.0,3237.7,3236.9,0.813]
[1736895777837,3.0,3237.7,3235.1,2.227]
[1736895777838,3.08928,3237.0,3236.5,0.8213]
[1736895778098,3.0,3236.9,3236.5,0.8213]
[1736895778537,3.08938,3236.9,3236.5,0.8213]
[1736895778877,3.08945,3236.9,3236.5,0.8213]
[1736895779082,3.0,3237.3,3236.5,0.8213]
[1736895779373,0.93778907,3237.2,3236.5,0.8213]
[1736895779575,0.89916734,3237.2,3236.5,0.8213]
[1736895779944,3.98828734,3237.2,3236.5,0.8213]
[1736895780133,3.0,3237.1,3236.5,0.8213]
[1736895780366,3.08869,3237.7,3236.6,0.8213]
[1736895780549,3.90206,3238.3,3236.9,0.8213]
[1736895780750,3.08787,3238.5,3237.6,3.08869]
[1736895781346,3.08794,3238.4,3237.5,0.8213]
[1736895781552,0.0386052,3238.3,3237.5,0.8213]
[1736895781771,6.08856,3237.8,3237.5,0.8213]
[1736895782076,3.0,3237.9,3237.5,0.8213]
[1736895783341,3.40083452,3238.2,3237.5,0.8213]
[1736895785987,3.08756,3238.8,3237.6,3.08862]
[1736895786155,3.0,3238.5,3237.7,0.7707]
[1736895787588,3.08742,3239.0,3238.0,0.7707]
[1736895787792,2.90278342,3239.6,3238.1,0.782]
[1736895788021,0.840676,3239.6,3238.4,0.782]
[1736895788148,2.90278342,3239.9,3238.9,0.782]
[1736895788348,3.08664,3239.8,3238.9,0.782]
[1736895788960,3.0,3239.2,3238.9,0.782]
[1736895789265,3.0,3239.0,3238.5,0.782]
[1736895789591,3.03859833,3239.2,3238.5,0.782]
[1736895789754,3.0,3238.8,3238.5,0.782]
[1736895789949,0.03859833,3239.0,3237.9,0.782]
[1736895790606,3.0,3238.6,3237.9,0.782]
[1736895791664,0.187,3239.2,3237.9,0.782]
[1736895791993,0.8226,3239.8,3238.5,0.782]
[1736895792167,3.08671,3239.7,3238.7,3.08762]
[1736895792369,3.390931,3239.6,3238.7,3.08762]
[1736895792992,3.477751,3239.6,3238.7,3.08762]
[1736895793191,0.03859173,3239.5,3238.5,0.782]
[1736895793396,3.0,3238.8,3238.5,0.782]
[1736895794357,0.608754,3238.8,3238.5,0.782]
[1736895794562,3.08775,3238.6,3238.5,0.782]
[1736895794976,3.0,3238.5,3237.8,0.782]
[1736895795374,0.0386014,3239.0,3237.8,0.782]
[1736895795702,3.0,3238.4,3237.8,0.782]
[1736895796655,3.08795,3238.4,3237.8,0.782]
[1736895796859,3.396745,3238.4,3237.8,0.782]
[1736895797196,0.03860379,3238.3,3237.8,0.782]
[1736895797396,3.08861,3237.8,3237.5,0.7913]
[1736895797797,0.03861031,3238.1,3237.2,0.7913]
[1736895797798,3.0887,3237.6,3237.2,0.7913]
[1736895798004,3.08888,3237.5,3237.2,0.7913]
[1736895798306,3.0,3237.6,3237.2,0.7913]
[1736895798606,6.08871,3237.6,3237.2,0.7913]
[1736895799486,6.08823,3238.1,3237.2,0.7913]
[1736895799803,3.27519,3238.2,3236.9,3.5215479]
[1736895799804,0.187,3238.2,3236.9,3.5215479]
[1736895800003,3.396825,3238.4,3237.3,3.08895]
[1736895800186,3.396825,3238.4,3237.4,0.7913]
[1736895800187,3.0,3238.2,3237.4,0.7913]
[1736895800579,3.08813,3238.2,3237.4,0.7913]
[1736895800761,3.0,3238.1,3237.4,0.7913]
[1736895803728,3.08819,3238.2,3237.4,0.7913]
[1736895803884,3.0,3238.1,3237.4,0.7913]
[1736895804424,3.08811,3238.3,3237.4,0.7913]
[1736895804731,3.0,3238.1,3237.4,0.7913]
[1736895807095,3.08785,3238.5,3237.6,0.7913]
[1736895807280,3.0,3238.3,3237.6,0.7913]
[1736895807486,3.08824,3238.1,3237.6,0.7913]
[1736895807712,3.0,3238.0,3237.6,0.7913]
[1736895810933,3.0,3238.2,3237.6,0.7913]
[1736895811501,3.08815,3238.2,3237.6,0.7913]
[1736895813215,3.696965,3238.2,3237.6,0.7913]
[1736895815141,3.0,3237.5,3237.0,0.7913]
[1736895815313,3.86020762,3238.1,3237.0,0.7913]
[1736895816509,3.08877,3237.6,3237.0,0.7913]
[1736895816711,3.0,3237.5,3237.0,0.7913]
[1736895817411,3.08896,3237.4,3237.0,0.7913]
[1736895817641,3.08903,3237.3,3237.0,0.7913]
[1736895819261,0.64751946,3237.3,3236.1,3.90731]
[1736895819459,3.08929,3237.0,3236.1,3.90731]
[1736895819761,3.08929,3237.0,3236.0,2.90694497]
[1736895819762,3.08929,3237.0,3236.3,0.8172]
[1736895821548,3.08913,3237.2,3236.3,0.8172]
[1736895822943,3.08913,3237.2,3236.3,3.90711]
[1736895823140,1.429615,3238.2,3236.7,0.8172]
[1736895823375,1.429615,3238.2,3237.3,3.08898]
[1736895823586,3.72774497,3238.5,3237.3,3.08898]
[1736895824561,3.0,3238.1,3237.3,3.08898]
[1736895824929,3.08824,3238.1,3237.3,3.08898]
[1736895825882,3.08888,3237.5,3237.2,0.8172]
[1736895826047,3.08909,3237.2,3236.8,0.8172]
[1736895827384,3.08894,3237.4,3236.8,0.8172]
[1736895828719,3.27857,3237.8,3236.1,3.09009]
[1736895828720,3.27854,3237.8,3236.6,2.90694497]
[1736895828997,3.0,3237.7,3236.8,3.08938]
[1736895829153,3.40772,3237.6,3236.8,3.08938]
[1736895829355,3.0,3237.5,3236.8,3.08938]
[1736895831503,3.0,3237.3,3236.5,3.08971]
[1736895831688,3.0,3237.3,3236.6,0.8107]
[1736895836959,0.319,3237.6,3236.6,0.8107]
[1736895837188,3.08899,3237.3,3236.6,0.8107]
[1736895839702,0.3319,3237.5,3236.6,0.8107]
[1736895840006,3.0,3237.4,3236.6,3.90035]
[1736895840557,3.08861,3237.7,3236.8,0.754]
[1736895840894,12.12482497,3238.5,3237.3,0.754]
[1736895841057,3.08822,3238.2,3237.3,3.84298]
[1736895841263,3.0,3238.1,3237.3,3.84298]
[1736895842113,9.21788,3238.5,3236.9,5.99627497]
[1736895842114,3.08798,3238.4,3237.2,0.8124]
[1736895842307,0.189,3238.8,3237.7,3.08856]
[1736895842612,3.0,3238.4,3237.8,0.8124]
[1736895843485,3.88308,3238.9,3237.8,0.8124]
[1736895843486,5.32,3239.4,3238.1,2.90694497]
[1736895843670,5.32,3239.4,3238.4,2.90694497]
[1736895844019,0.81120672,3240.1,3239.0,2.90694497]
[1736895844241,0.81120672,3240.1,3239.1,0.8124]
[1736895844407,0.81120672,3240.1,3239.4,0.8124]
[1736895844609,0.81120672,3240.1,3239.4,3.8993]
[1736895844830,3.0,3240.4,3239.4,3.8993]
[1736895845028,0.608597,3240.3,3239.4,3.8993]
[1736895845342,0.81120672,3241.0,3239.4,0.8124]
[1736895845498,0.81120672,3241.0,3240.3,3.08608]
[1736895845698,0.81120672,3241.0,3240.4,3.08603]
[1736895846131,0.7956,3241.5,3240.4,3.08603]
[1736895846328,0.83417157,3241.5,3240.4,3.08603]
[1736895846529,0.40231716,3241.4,3240.2,3.89859]
[1736895846730,3.0,3241.1,3240.2,3.89859]
[1736895847002,3.0853,3241.2,3240.2,3.89859]
[1736895847195,0.7956,3241.5,3240.2,0.8124]
[1736895847196,0.03857159,3241.4,3240.2,0.8124]
[1736895847400,2.90694497,3241.1,3239.8,0.8124]
[1736895847643,6.08621,3240.3,3239.8,0.8124]
[1736895847798,0.64720275,3240.2,3239.8,0.8124]
[1736895847998,3.08651,3239.9,3239.8,0.8124]
[1736895848299,3.08682,3239.6,3238.8,0.8124]
[1736895848520,3.08636,3240.1,3238.8,0.8124]
[1736895848521,0.03228595,3239.5,3238.8,0.8124]
[1736895848716,3.0,3239.1,3238.8,0.8124]
[1736895848924,3.608725,3239.1,3238.8,0.8124]
[1736895849136,3.08661,3239.8,3238.8,0.8124]
[1736895849529,3.08661,3239.8,3238.8,3.89994]
[1736895849705,3.0,3239.7,3238.8,3.89994]
[1736895850048,0.03858838,3239.7,3238.8,0.8124]
[1736895850247,3.08702,3239.4,3238.8,0.8124]
[1736895850536,0.308702,3239.3,3238.8,0.8124]
[1736895850940,3.0,3239.5,3238.8,0.8124]
[1736895852339,3.08693,3239.5,3238.8,0.8124]
[1736895852647,3.08695,3239.5,3238.8,0.8124]
[1736895855523,3.694881,3240.2,3239.0,3.08728]
[1736895855869,0.608621,3240.2,3239.6,0.8124]
[1736895856019,3.0,3240.6,3239.6,0.8124]
[1736895856219,3.22658012,3240.8,3239.6,0.8124]
[1736895856470,3.0,3240.6,3239.6,0.8124]
[1736895856622,3.08643,3240.0,3239.6,0.8124]
[1736895856819,0.22658549,3239.9,3239.1,0.7716]
[1736895857167,3.08726,3239.2,3238.2,0.7716]
[1736895857837,0.03859264,3239.1,3238.2,0.7716]
[1736895858020,3.8185,3239.5,3238.2,0.7716]
[1736895858021,0.03859684,3239.3,3238.2,0.7716]
[1736895858366,3.08712,3239.3,3238.0,0.7716]
[1736895858682,3.08712,3239.3,3238.5,0.7716]
[1736895863095,0.03859291,3239.2,3238.5,0.7716]
[1736895863300,3.08727,3239.1,3238.5,0.7716]
[1736895863498,3.0,3238.9,3237.6,3.86028]
[1736895863644,3.08706,3239.4,3238.1,0.7716]
[1736895863845,0.03859572,3239.3,3238.1,0.7716]
[1736895864090,0.8185,3238.9,3238.1,0.7716]
[1736895864243,3.08813,3238.2,3237.4,0.7716]
[1736895864447,3.08842,3237.9,3237.4,0.7716]
[1736895864647,3.08856,3237.8,3237.4,0.7716]
[1736895864891,3.08873,3237.6,3237.4,0.7716]
[1736895865092,3.0881,3238.3,3237.4,0.7716]
[1736895865595,1.0065,3238.9,3237.4,3.51810147]
[1736895865800,3.08817,3238.2,3237.5,0.7716]
[1736895866089,0.188,3238.8,3237.5,0.7716]
[1736895866291,3.0,3238.6,3237.7,3.08858]
[1736895866447,3.0,3238.4,3237.8,0.7716]
[1736895866651,0.03860214,3238.3,3236.9,3.51810147]
[1736895866950,3.08789,3238.5,3237.6,0.7716]
[1736895867290,3.08789,3238.5,3236.6,0.60441276]
[1736895867291,3.08768,3238.7,3237.8,3.0885]
[1736895867494,3.90561,3239.3,3238.2,3.08806]
[1736895867646,3.08711,3239.3,3238.2,3.08806]
[1736895867846,3.08711,3239.3,3238.3,0.7615]
[1736895868099,3.08769,3238.7,3238.3,0.7615]
[1736895868258,0.308682,3239.5,3238.3,0.7615]
[1736895868454,3.08726,3239.2,3238.3,0.7615]
[1736895868899,0.7914,3239.9,3238.8,3.08752]
[1736895869052,0.7914,3240.3,3239.0,3.08729]
[1736895869247,6.64293805,3240.2,3238.9,0.7615]
[1736895869447,3.08657,3239.9,3238.9,0.7615]
[1736895869693,0.308657,3239.8,3238.9,0.7615]
[1736895869860,0.308657,3239.8,3239.0,3.08733]
[1736895870068,0.9864,3240.3,3238.9,0.7615]
[1736895870247,3.79278015,3240.5,3239.5,3.08689]
[1736895870450,0.70681015,3240.5,3239.6,0.7615]
[1736895870689,0.03858062,3240.5,3239.6,0.7615]
[1736895870898,0.03858062,3240.5,3238.8,3.08751]
[1736895870899,3.0866,3239.9,3238.8,0.7615]
[1736895871072,3.0866,3239.9,3238.9,3.08744]
[1736895871472,3.0,3239.9,3238.8,0.7615]
[1736895871699,3.08625,3240.2,3239.2,0.7615]
[1736895872004,3.0857,3240.8,3239.8,0.7615]
[1736895872495,0.03858014,3240.8,3239.8,0.7615]
[1736895872655,3.0,3240.3,3239.8,0.7615]
[1736895872853,0.03858015,3240.2,3239.2,3.84865]
[1736895873158,3.08578,3240.7,3239.7,3.08669]
[1736895873477,3.0,3240.6,3239.8,0.7615]
[1736895873652,6.60300147,3241.6,3239.9,0.7615]
[1736895873653,0.195,3241.3,3239.9,0.7615]
[1736895874098,3.0,3240.8,3239.9,3.84799]
[1736895874410,0.03857443,3240.9,3239.9,0.7615]
[1736895874551,3.08583,3240.7,3239.9,0.7615]
[1736895874751,3.308583,3240.6,3239.9,0.7615]
[1736895874952,0.308583,3240.6,3239.9,0.7615]
[1736895875150,3.0,3240.6,3239.9,0.7615]
[1736895876191,3.08585,3240.6,3239.9,0.7615]
[1736895876698,0.0385792,3240.8,3239.0,0.7615]
[1736895876699,3.086,3240.5,3239.0,0.7615]
[1736895876897,3.086,3240.5,3239.7,0.7615]
[1736895877069,0.3086,3240.4,3239.7,0.7615]
[1736895877272,5.32,3242.2,3240.0,3.08639]
[1736895877273,3.27956,3241.0,3240.0,3.08639]
[1736895877457,3.08529,3241.2,3240.2,3.08621]
[1736895877651,0.03857191,3241.2,3240.1,0.7615]
[1736895877857,3.0,3240.9,3240.1,0.7615]
[1736895878086,3.55667593,3241.2,3240.1,0.7615]
[1736895878291,3.08584,3240.7,3240.1,0.7615]
[1736895878507,3.08586,3240.6,3240.1,0.7615]
[1736895879059,3.194,3240.9,3240.1,0.7615]
[1736895879060,0.194,3240.9,3240.1,0.7615]
[1736895879495,0.43480759,3241.1,3240.1,0.7615]
[1736895879496,0.43480759,3241.1,3240.2,3.08614]
[1736895879809,3.43480759,3241.1,3240.3,0.7615]
[1736895880102,0.67141076,3241.0,3240.3,0.7615]
[1736895880458,3.08538,3241.1,3240.3,0.7615]
[1736895881103,3.0,3241.0,3240.3,0.7615]
[1736895883775,0.03857196,3241.1,3240.3,0.7615]
[1736895883977,3.08558,3240.9,3240.3,0.7615]
[1736895884605,0.03857196,3241.1,3240.3,0.7615]
[1736895884779,3.0,3240.6,3240.0,0.7615]
[1736895885115,3.0,3240.7,3240.0,0.7615]
[1736895885428,3.0,3240.4,3239.1,0.7615]
[1736895885731,3.0,3240.4,3238.8,9.82091162]
[1736895885732,6.08563,3240.9,3239.4,0.7615]
[1736895885890,6.694193,3240.9,3239.7,0.7615]
[1736895886271,0.608563,3240.9,3239.2,6.60523147]
[1736895886479,0.67972215,3241.3,3240.3,0.8079]
[1736895886716,3.08528,3241.2,3240.3,0.8079]
[1736895887083,3.0,3241.1,3240.3,0.8079]
[1736895887525,3.0,3241.1,3240.3,3.89401]
[1736895888526,0.194,3241.5,3240.4,3.08603]
[1736895888828,3.0,3241.2,3240.4,3.08603]
[1736895889123,3.08504,3241.5,3240.5,3.08592]
[1736895889372,3.08512,3241.4,3240.6,0.7735]
[1736895889631,3.0,3241.3,3240.6,0.7735]
[1736895890641,0.23256794,3241.7,3240.6,0.7735]
[1736895890642,0.03856794,3241.2,3240.6,0.7735]
[1736895890784,3.08557,3240.9,3240.6,0.7735]
[1736895891129,0.308557,3240.8,3240.6,0.7735]
[1736895891583,0.03857348,3240.7,3240.0,0.7735]
[1736895891784,3.08572,3240.8,3240.0,0.7735]
[1736895892228,3.8078,3241.2,3239.4,8.87]
[1736895892229,0.8078,3240.5,3239.4,0.7735]
[1736895892448,0.03858301,3240.4,3239.4,0.7735]
[1736895892750,0.8078,3240.5,3239.4,0.7735]
[1736895892898,3.08672,3239.7,3239.4,0.7735]
[1736895893094,0.308672,3239.6,3239.4,0.7735]
[1736895895340,0.8078,3240.5,3239.4,0.7735]
[1736895895558,3.89374,3240.5,3239.4,0.7735]
[1736895895738,3.0,3240.4,3239.4,0.7735]
[1736895895901,3.0,3240.1,3239.4,0.7735]
[1736895896103,3.08663,3239.8,3239.4,0.7735]
[1736895896548,0.03858538,3239.9,3239.4,0.7735]
[1736895896847,3.08651,3239.9,3239.4,0.7735]
[1736895897085,0.608632,3240.0,3239.4,0.7735]
[1736895897289,3.0,3239.7,3239.4,0.7735]
[1736895897590,3.608664,3239.7,3239.4,0.7735]
[1736895898995,0.608664,3239.7,3239.4,0.7735]
[1736895899199,3.0,3239.9,3239.4,0.7735]
[1736895899486,0.608632,3240.0,3239.4,0.7735]
[1736895899689,3.08613,3240.3,3239.4,3.86048]
[1736895899888,3.0,3240.4,3239.6,3.0868]
[1736895900089,3.08596,3240.5,3239.7,0.7735]
[1736895900287,3.08604,3240.4,3239.7,0.7735]
[1736895901059,0.8078,3241.2,3239.7,0.7735]
[1736895901254,3.08554,3241.0,3239.8,0.7735]
[1736895901576,3.08557,3240.9,3240.1,0.8148]
[1736895902154,0.43259015,3241.1,3240.4,3.08599]
[1736895902358,0.43259015,3241.1,3240.5,0.8148]
[1736895902583,3.08398,3242.6,3241.6,3.08486]
[1736895902753,0.7821,3243.0,3241.7,3.08478]
[1736895902972,0.7821,3243.0,3241.4,3.51810147]
[1736895902973,0.7821,3243.0,3241.6,0.8148]
[1736895903293,3.0,3242.6,3241.6,0.8148]
[1736895903497,0.7821,3243.0,3241.8,3.08468]
[1736895903802,3.0,3242.6,3241.6,3.89967]
[1736895904459,3.08385,3242.7,3241.6,3.89967]
[1736895904951,3.08396,3242.6,3241.6,3.89967]
[1736895905353,3.08442,3242.1,3241.6,0.8148]
[1736895905660,6.392982,3242.0,3241.6,0.8148]
[1736895905973,3.08462,3241.9,3241.6,0.8148]
[1736895907580,3.08462,3241.9,3241.0,0.8148]
[1736895907581,3.0848,3241.7,3241.0,0.8148]
[1736895907784,3.08468,3241.9,3241.0,0.8148]
[1736895907961,0.3393122,3241.8,3241.0,0.8148]
[1736895908297,3.08473,3241.8,3241.0,0.8148]
[1736895908706,0.308442,3242.0,3241.0,0.8148]
[1736895908707,0.03856423,3241.7,3241.0,0.8148]
[1736895908872,3.08498,3241.6,3241.0,0.8148]
[1736895909055,3.03856648,3241.5,3241.0,0.8148]
[1736895909305,0.03856648,3241.5,3240.4,0.8148]
[1736895909757,3.08558,3240.9,3240.4,0.8148]
[1736895909953,3.08519,3241.3,3240.4,0.8148]
[1736895910157,0.308519,3241.2,3240.4,0.8148]
[1736895910372,3.0,3241.1,3240.4,0.8148]
[1736895914798,0.2,3241.8,3240.6,3.08583]
[1736895915001,3.08488,3241.7,3240.7,0.8148]
[1736895915393,3.0,3241.6,3240.7,0.8148]
[1736895915589,0.68990138,3241.6,3240.7,0.8148]
[1736895915822,0.81413378,3241.8,3240.7,0.8148]
[1736895915823,0.0385678,3241.8,3240.7,0.8148]
[1736895916395,0.63076542,3241.7,3240.7,0.8148]
[1736895916596,3.0,3241.3,3240.7,0.8148]
[1736895916936,3.08549,3241.0,3240.7,0.8148]
[1736895917107,3.63076542,3241.7,3240.7,0.8148]
[1736895917310,3.08548,3241.0,3240.7,0.8148]
[1736895917524,3.0,3241.2,3240.7,0.8148]
[1736895917709,3.08558,3240.9,3240.7,0.8148]
[1736895918044,1.50235154,3241.6,3239.9,0.7618]
[1736895918196,3.08536,3241.2,3240.2,0.7618]
[1736895918398,3.08536,3241.2,3240.3,3.08611]
[1736895918634,3.08518,3241.3,3240.3,3.08611]
[1736895918836,1.50235154,3241.6,3240.2,4.27990147]
[1736895919044,3.0,3241.4,3240.6,3.08581]
[1736895919196,3.0,3241.4,3240.7,0.7618]
[1736895920146,3.0,3241.5,3240.7,3.84752]
[1736895920839,3.0848,3241.7,3240.7,3.84752]
[1736895921741,3.0,3241.9,3240.7,3.84752]
[1736895921906,3.0,3241.5,3240.7,3.84752]
[1736895922107,3.0,3241.5,3240.7,0.7618]
[1736895923143,3.08442,3242.2,3241.3,0.7618]
[1736895923858,3.0,3242.0,3241.3,0.7618]
[1736895924227,3.08453,3242.0,3241.3,0.7618]
[1736895924832,3.0,3241.8,3241.3,0.7618]
[1736895925025,3.08475,3241.8,3241.3,0.7618]
[1736895925230,3.0,3241.9,3241.3,0.7618]
[1736895925427,3.08464,3241.9,3241.3,0.7618]
[1736895928456,0.308453,3242.0,3241.3,0.7618]
[1736895928457,0.03856128,3241.8,3241.3,0.7618]
[1736895928646,3.08504,3241.5,3241.0,0.7618]
[1736895929358,3.0852,3241.3,3241.0,0.7618]
[1736895932623,3.308504,3241.5,3240.3,0.7618]
[1736895932855,3.03857048,3241.4,3240.3,0.7618]
[1736895933058,3.0,3241.0,3240.3,0.7618]
[1736895933468,3.0,3241.0,3240.3,3.66293874]
[1736895933676,3.0,3241.0,3240.3,4.33785461]
[1736895933831,0.8108,3241.9,3240.4,0.7618]
[1736895934032,3.08495,3241.6,3240.7,3.84746]
[1736895934230,0.8108,3241.9,3240.7,3.84746]
[1736895934231,3.0,3241.7,3240.7,0.7618]
[1736895934588,3.08482,3241.7,3240.8,3.08563]
[1736895934726,3.08482,3241.7,3240.9,0.384743]
[1736895935969,3.71193874,3242.2,3241.0,0.7618]
[1736895935970,3.08465,3241.9,3241.0,0.7618]
[1736895936843,3.08521,3241.3,3241.0,0.7618]
[1736895937023,3.308521,3241.2,3241.0,0.7618]
[1736895937223,3.0,3241.2,3241.0,0.7618]
[1736895937853,0.8108,3241.5,3240.4,0.7618]
[1736895938055,3.08508,3241.4,3240.4,0.7618]
[1736895938257,3.0,3240.7,3240.4,0.7618]
[1736895938770,3.08594,3240.5,3239.7,0.7618]
[1736895938973,3.0,3240.7,3239.7,0.7618]
[1736895939177,3.08603,3240.5,3239.7,0.7618]
[1736895939671,3.8108,3240.8,3239.7,0.7618]
[1736895939968,3.08605,3240.4,3239.7,0.7618]
[1736895940178,3.0,3240.5,3239.7,0.7618]
[1736895940531,0.689649,3240.7,3239.7,0.7618]
[1736895940738,3.0,3240.8,3239.9,0.7618]
[1736895941377,3.08572,3240.8,3239.9,3.84823]
[1736895941745,3.08572,3240.8,3239.9,3.08643]
[1736895941948,3.08572,3240.8,3240.0,0.7618]
[1736895942940,3.08574,3240.8,3240.0,0.7618]
[1736895944038,3.08515,3241.4,3240.1,0.7618]
[1736895944238,3.08515,3241.4,3240.5,3.08591]
[1736895944453,6.08519,3241.3,3240.6,0.7618]
[1736895944778,0.202,3241.7,3239.8,0.7618]
[1736895944779,3.0,3240.9,3239.8,0.7618]
[1736895944977,3.08597,3240.5,3239.8,0.7618]
[1736895945176,3.08585,3240.6,3239.8,0.7618]
[1736895945474,3.0,3240.5,3239.8,0.7618]
[1736895946480,0.03857942,3240.4,3239.8,0.7618]
[1736895946639,3.08618,3240.3,3239.8,0.7618]
[1736895947139,3.0,3240.2,3239.8,0.7618]
[1736895948881,3.0863,3240.2,3239.8,0.7618]
[1736895951385,0.308618,3240.3,3239.8,0.7618]
[1736895951769,3.0,3240.2,3239.8,0.7618]
[1736895951943,3.08649,3240.0,3239.8,0.7618]
[1736895952148,3.08649,3240.0,3239.0,6.29313859]
[1736895952149,3.08661,3239.8,3239.2,0.7502]
[1736895952358,3.12529661,3239.7,3239.2,0.7502]
[1736895952556,3.08684,3239.6,3239.2,0.7502]
[1736895953047,0.308684,3239.6,3238.8,3.20577859]
[1736895953270,3.0,3239.3,3238.9,0.7502]
[1736895955170,0.0385917,3239.3,3238.9,0.7502]
[1736895955372,3.03859321,3239.5,3238.9,0.7502]
[1736895955687,3.08708,3239.3,3238.9,0.7502]
[1736895955883,0.03859321,3239.5,3238.9,0.7502]
[1736895956093,0.03859321,3239.5,3238.2,4.12988627]
[1736895956094,3.08738,3239.0,3238.3,0.7502]
[1736895956823,3.08722,3239.2,3238.3,1.54702863]
[1736895957675,3.0,3239.3,3238.4,3.08785]
[1736895957879,3.0,3239.3,3238.5,0.7555]
[1736895959487,3.0,3239.3,3238.5,3.84333]
[1736895959802,0.8212,3240.5,3239.0,2.90461124]
[1736895960004,0.03858577,3240.4,3239.1,0.7555]
[1736895960218,3.08659,3239.9,3239.1,0.7555]
[1736895960920,3.0,3239.8,3239.1,0.7555]
[1736895961116,3.08636,3240.1,3239.1,0.7555]
[1736895961417,3.08636,3240.1,3239.1,3.8427]
[1736895961619,5.32,3240.2,3239.3,2.90461124]
[1736895961820,5.32,3240.2,3239.4,1.11746112]
[1736895961976,3.0,3240.1,3239.4,1.11746112]
[1736895962619,3.0,3240.4,3239.5,3.08681]
[1736895962974,3.0,3240.4,3239.6,3.08677]
[1736895963179,3.0,3240.6,3239.6,3.08677]
[1736895963411,1.140578,3240.5,3239.6,3.08677]
[1736895963613,1.140578,3240.5,3239.7,3.91366]
[1736895964984,1.140578,3240.5,3239.7,0.827]
[1736895966438,1.140578,3240.5,3239.7,3.91369]
[1736895966635,1.140578,3240.5,3239.7,0.827]
[1736895966787,0.45263887,3240.4,3239.7,0.827]
[1736895966991,3.0863,3240.2,3239.4,0.827]
[1736895967240,0.7825,3240.3,3239.4,0.827]
[1736895967611,3.0,3240.2,3239.4,0.827]
[1736895967806,3.0,3240.0,3239.4,0.827]
[1736895968047,3.0,3240.2,3239.4,0.827]
[1736895968200,3.72827178,3240.2,3239.4,0.827]
[1736895968943,3.0,3240.1,3239.4,0.827]
[1736895969315,0.72827178,3240.2,3239.4,0.827]
[1736895969693,3.72827178,3240.2,3239.4,0.827]
[1736895970548,0.7668575,3240.2,3239.4,0.827]
[1736895970746,0.15493575,3240.1,3239.0,3.91436]
[1736895971092,3.24126575,3240.1,3239.0,3.91436]
[1736895971294,0.15493575,3240.1,3239.0,0.827]
[1736895971707,1.140578,3240.5,3239.5,0.827]
[1736895971924,9.38833,3240.7,3239.6,3.08675]
[1736895972193,5.32,3240.7,3239.5,0.827]
[1736895972324,5.32,3240.7,3239.7,3.08667]
[1736895972524,5.32,3240.7,3239.8,0.827]
[1736895972843,3.0,3240.6,3239.8,0.827]
[1736895973039,3.832,3240.6,3239.8,0.827]
[1736895978354,3.832,3240.6,3239.8,3.9136]
[1736895978556,0.7825,3241.0,3240.0,3.08639]
[1736895978742,0.823,3241.3,3240.2,3.73431124]
[1736895978945,0.823,3241.7,3240.7,3.08572]
[1736895979253,5.32,3241.8,3240.9,3.08553]
[1736895979254,0.6143,3241.6,3240.9,3.08553]